[Event "Polgar Challenge 2021"]
[Site "Online"]
[Date "2021.04.04"]
[Round "5.9"]
[White "Gukesh D"]
[Black "Abdumalik, Zhansaya"]
[Result "1-0"]
[ECO "A62"]
[WhiteElo "2578"]
[BlackElo "2472"]
[Annotator "ChessBase"]
[PlyCount "77"]
[EventDate "2021.04.08"]
[EventType "tourn"]
[EventCountry "NET"]
[SourceTitle "playchess.com"]
[Source "ChessBase"]
[SourceQuality "1"]
[TimeControl "600+5"]

1. d4 {[%emt 0:00:00]} Nf6 {[%emt 0:00:00]} 2. c4 {[%emt 0:00:01]} g6 {[%emt 0:00:00]} 3. g3 {[%emt 0:00:01]} c5 {[%emt 0:00:06]} 4. d5 {[%emt 0:00:48]} Bg7 {[%emt 0:00:14]} 5. Bg2 {[%emt 0:00:06]} d6 {[%emt 0:00:01]} 6. Nc3 {[%emt 0:00:21]} O-O {[%emt 0:00:08]} 7. Nf3 {[%emt 0:00:09]} e6 {[%emt 0:00:19]} 8. O-O {[%emt 0:00:13]} exd5 {[%emt 0:00:01]} 9. cxd5 {[%emt 0:00:09]} a6 {[%emt 0:00:06]} 10. a4 {[%emt 0:00:02]} Bf5 {[%emt 0:00:02]} 11. Nd2 {[%emt 0:00:14]} Re8 {[%emt 0:00:35]} 12. e4 {[%emt 0:00:04]} Bg4 {[%emt 0:00:13]} 13. f3 {[%emt 0:00:26]} Bc8 {[%emt 0:00:03]} 14. Nc4 {[%emt 0:00:15]} Bf8 {[%emt 0:00:26]} 15. Bf4 {[%emt 0:00:59]} Nh5 {[%emt 0:00:08]} 16. Be3 {[%emt 0:00:04]} Nd7 {[%emt 0:00:04]} 17. a5 {[%emt 0:00:10]} b5 {[%emt 0:00:12]} 18. axb6 {[%emt 0:00:03]} Nxb6 {[%emt 0:00:01]} 19. Na5 {[%emt 0:00:13]} Nf6 {[%emt 0:00:18]} 20. Qd2 {[%emt 0:00:23]} Qc7 {[%emt 0:00:10]} 21. Rfc1 {[%emt 0:00:20]} Nfd7 {[%emt 0:00:38]} 22. f4 {[%emt 0:01:03]} Qd8 {[%emt 0:00:41]} 23. Nc6 {[%emt 0:01:11]} Qc7 {[%emt 0:00:20]} 24. b3 {[%emt 0:00:21]} Bb7 {[%emt 0:00:10]} 25. Na5 {[%emt 0:00:57]} Bc8 {[%emt 0:00:44]} 26. Ra2 {[%emt 0:00:22]} Nf6 {[%emt 0:00:25]} 27. h3 {[%emt 0:00:05]} Bg7 {[%emt 0:00:20]} 28. b4 {[%emt 0:00:31]} Nfd7 {[%emt 0:01:31]} 29. e5 {[%emt 0:00:47]} Rb8 {[%emt 0:00:47]} 30. Ne4 {[%emt 0:00:18]} dxe5 {[%emt 0:01:14]} 31. bxc5 {[%emt 0:00:09]} Nxd5 {[%emt 0:00:35]} 32. Qxd5 {[%emt 0:00:04]} Nf6 {[%emt 0:00:01]} 33. Qd6 {[%emt 0:00:12]} Qxd6 {[%emt 0:00:25]} 34. Nxd6 {[%emt 0:00:01]} Be6 {[%emt 0:00:01]} 35. Nxe8 {[%emt 0:00:07]} Bxa2 {[%emt 0:00:02]} 36. Nxg7 {[%emt 0:00:01]} Kxg7 {[%emt 0:00:03]} 37. fxe5 {[%emt 0:00:01]} Nd7 {[%emt 0:00:01]} 38. c6 {[%emt 0:00:02]} Nxe5 {[%emt 0:00:04]} 39. c7 {[%emt 0:00:02]} 1-0

[Event "Polgar Challenge 2021"]
[Site "Online"]
[Date "2021.04.04"]
[Round "5.10"]
[White "Keymer, Vincent"]
[Black "Mendonca, Leon Luke"]
[Result "1-0"]
[ECO "E14"]
[WhiteElo "2591"]
[BlackElo "2549"]
[Annotator "ChessBase"]
[PlyCount "105"]
[EventDate "2021.04.08"]
[EventType "tourn"]
[EventCountry "NET"]
[SourceTitle "playchess.com"]
[Source "ChessBase"]
[SourceQuality "1"]
[TimeControl "600+5"]

1. Nf3 {[%emt 0:00:00]} Nf6 {[%emt 0:00:00]} 2. c4 {[%emt 0:00:04]} e6 {[%emt 0:00:53]} 3. Nc3 {[%emt 0:00:03]} d5 {[%emt 0:00:01]} 4. e3 {[%emt 0:00:01]} Be7 {[%emt 0:00:13]} 5. b3 {[%emt 0:00:01]} O-O {[%emt 0:00:08]} 6. Bb2 {[%emt 0:00:01]} b6 {[%emt 0:00:02]} 7. cxd5 {[%emt 0:00:10]} exd5 {[%emt 0:00:03]} 8. d4 {[%emt 0:00:02]} Bb7 {[%emt 0:00:18]} 9. Bd3 {[%emt 0:00:01]} Nbd7 {[%emt 0:00:27]} 10. O-O {[%emt 0:00:02]} a6 {[%emt 0:00:02]} 11. Ne2 {[%emt 0:00:04]} Re8 {[%emt 0:00:07]} 12. Ng3 {[%emt 0:00:05]} Bd6 {[%emt 0:00:23]} 13. Nf5 {[%emt 0:00:09]} Bf8 {[%emt 0:00:05]} 14. Ne5 {[%emt 0:00:09]} g6 {[%emt 0:02:15]} 15. Ng3 {[%emt 0:00:04]} Bg7 {[%emt 0:00:49]} 16. f4 {[%emt 0:00:44]} c5 {[%emt 0:00:26]} 17. Qf3 {[%emt 0:00:16]} Qc7 {[%emt 0:00:39]} 18. Rac1 {[%emt 0:00:22]} Rac8 {[%emt 0:00:09]} 19. Qe2 {[%emt 0:01:21]} a5 {[%emt 0:01:32]} 20. Bb5 {[%emt 0:00:34]} Re7 {[%emt 0:00:06]} 21. Rfd1 {[%emt 0:00:14]} Qd8 {[%emt 0:00:45]} 22. a4 {[%emt 0:00:36]} cxd4 {[%emt 0:00:26]} 23. exd4 {[%emt 0:00:10]} Nf8 {[%emt 0:00:19]} 24. Rxc8 {[%emt 0:01:03]} Qxc8 {[%emt 0:00:03]} 25. f5 {[%emt 0:00:25]} Rc7 {[%emt 0:00:36]} 26. Bd3 {[%emt 0:00:18]} Qd8 {[%emt 0:01:07]} 27. Rf1 {[%emt 0:00:11]} Qd6 {[%emt 0:00:01]} 28. h4 {[%emt 0:00:34]} Ne4 {[%emt 0:00:15]} 29. Nxe4 {[%emt 0:00:27]} dxe4 {[%emt 0:00:02]} 30. Bxe4 {[%emt 0:00:00]} Bxe4 {[%emt 0:00:00]} 31. Qxe4 {[%emt 0:00:01]} Qb4 {[%emt 0:00:05]} 32. fxg6 {[%emt 0:00:32]} hxg6 {[%emt 0:00:03]} 33. Qd5 {[%emt 0:00:23]} Bxe5 {[%emt 0:00:06]} 34. Qxe5 {[%emt 0:00:06]} Re7 {[%emt 0:00:03]} 35. Qf6 {[%emt 0:00:16]} Nh7 {[%emt 0:00:12]} 36. Qf3 {[%emt 0:00:04]} Qd2 {[%emt 0:00:05]} 37. Rf2 {[%emt 0:00:43]} Qe1+ {[%emt 0:00:06]} 38. Kh2 {[%emt 0:00:03]} Qe3 {[%emt 0:00:04]} 39. d5 {[%emt 0:00:36]} Qxf3 {[%emt 0:00:11]} 40. Rxf3 {[%emt 0:00:00]} Rd7 {[%emt 0:00:03]} 41. Rc3 {[%emt 0:00:09]} f6 {[%emt 0:00:06]} 42. Rc6 {[%emt 0:00:19]} Rxd5 {[%emt 0:00:04]} 43. Bxf6 {[%emt 0:00:05]} b5 {[%emt 0:00:08]} 44. Bc3 {[%emt 0:00:28]} Nf8 {[%emt 0:00:01]} 45. Rc7 {[%emt 0:00:12]} Ne6 {[%emt 0:00:05]} 46. Re7 {[%emt 0:00:11]} Nd4 {[%emt 0:00:09]} 47. axb5 {[%emt 0:00:14]} Nf5 {[%emt 0:00:04]} 48. Rb7 {[%emt 0:00:21]} Rd3 {[%emt 0:00:01]} 49. Rc7 {[%emt 0:00:11]} Rd5 {[%emt 0:00:04]} 50. b6 {[%emt 0:00:06]} Nd6 {[%emt 0:00:11]} 51. Rd7 {[%emt 0:00:14]} Rc5 {[%emt 0:00:05]} 52. Rxd6 {[%emt 0:00:05]} Rxc3 {[%emt 0:00:05]} 53. Rd8+ {[%emt 0:00:01]} 1-0

[Event "Polgar Challenge 2021"]
[Site "Online"]
[Date "2021.04.04"]
[Round "6.1"]
[White "Zhu, Jiner"]
[Black "Mendonca, Leon Luke"]
[Result "1/2-1/2"]
[ECO "B36"]
[WhiteElo "2459"]
[BlackElo "2549"]
[Annotator "ChessBase"]
[PlyCount "78"]
[EventDate "2021.04.08"]
[EventType "tourn"]
[EventCountry "NET"]
[SourceTitle "playchess.com"]
[Source "ChessBase"]
[SourceQuality "1"]
[TimeControl "600+5"]

1. e4 {[%emt 0:00:00]} c5 {[%emt 0:00:00]} 2. Nf3 {[%emt 0:00:00]} Nc6 {[%emt 0:00:07]} 3. d4 {[%emt 0:00:00]} cxd4 {[%emt 0:00:04]} 4. Nxd4 {[%emt 0:00:04]} g6 {[%emt 0:00:12]} 5. c4 {[%emt 0:00:04]} Nf6 {[%emt 0:00:33]} 6. Nc3 {[%emt 0:00:03]} Nxd4 {[%emt 0:00:21]} 7. Qxd4 {[%emt 0:00:04]} d6 {[%emt 0:00:02]} 8. Be3 {[%emt 0:00:10]} Bg7 {[%emt 0:00:04]} 9. f3 {[%emt 0:00:03]} O-O {[%emt 0:00:10]} 10. Qd2 {[%emt 0:00:02]} Be6 {[%emt 0:00:05]} 11. Be2 {[%emt 0:00:27]} Qa5 {[%emt 0:00:31]} 12. Rc1 {[%emt 0:00:13]} Rfc8 {[%emt 0:00:45]} 13. b3 {[%emt 0:00:57]} Nd7 {[%emt 0:00:45]} 14. Nd5 {[%emt 0:01:47]} Qxd2+ {[%emt 0:00:05]} 15. Kxd2 {[%emt 0:00:06]} Bxd5 {[%emt 0:00:22]} 16. cxd5 {[%emt 0:00:04]} a6 {[%emt 0:02:52]} 17. Rxc8+ {[%emt 0:00:05]} Rxc8 {[%emt 0:00:02]} 18. Rc1 {[%emt 0:00:01]} Rxc1 {[%emt 0:00:23]} 19. Kxc1 {[%emt 0:00:03]} Bc3 {[%emt 0:01:02]} 20. a3 {[%emt 0:02:21]} Ba5 {[%emt 0:00:55]} 21. Kc2 {[%emt 0:00:04]} Kg7 {[%emt 0:00:39]} 22. Bd4+ {[%emt 0:01:02]} Kf8 {[%emt 0:00:15]} 23. b4 {[%emt 0:00:51]} Bb6 {[%emt 0:00:14]} 24. Bc3 {[%emt 0:00:14]} Bg1 {[%emt 0:00:56]} 25. h3 {[%emt 0:00:01]} g5 {[%emt 0:00:21]} 26. a4 {[%emt 0:00:15]} f6 {[%emt 0:00:12]} 27. Kb3 {[%emt 0:00:45]} Ke8 {[%emt 0:00:03]} 28. Bd2 {[%emt 0:00:39]} Ne5 {[%emt 0:00:07]} 29. b5 {[%emt 0:00:50]} axb5 {[%emt 0:00:05]} 30. Bxb5+ {[%emt 0:00:01]} Kd8 {[%emt 0:00:06]} 31. Kc2 {[%emt 0:00:40]} Ng6 {[%emt 0:00:05]} 32. Kd1 {[%emt 0:00:12]} Nf4 {[%emt 0:00:05]} 33. Bxf4 {[%emt 0:00:03]} gxf4 {[%emt 0:00:01]} 34. Ke2 {[%emt 0:00:02]} h6 {[%emt 0:00:07]} 35. Kd3 {[%emt 0:00:01]} Bf2 {[%emt 0:00:05]} 36. Ke2 {[%emt 0:00:01]} Bg1 {[%emt 0:00:02]} 37. Kd3 {[%emt 0:00:01]} Bf2 {[%emt 0:00:01]} 38. Kc4 {[%emt 0:00:02]} Kc7 {[%emt 0:00:03]} 39. Kd3 {[%emt 0:00:01]} Kd8 {[%emt 0:00:03]} 1/2-1/2

[Event "Polgar Challenge 2021"]
[Site "Online"]
[Date "2021.04.04"]
[Round "6.2"]
[White "Abdumalik, Zhansaya"]
[Black "Keymer, Vincent"]
[Result "0-1"]
[ECO "B90"]
[WhiteElo "2472"]
[BlackElo "2591"]
[Annotator "ChessBase"]
[PlyCount "98"]
[EventDate "2021.04.08"]
[EventType "tourn"]
[EventCountry "NET"]
[SourceTitle "playchess.com"]
[Source "ChessBase"]
[SourceQuality "1"]
[TimeControl "600+5"]

1. e4 {[%emt 0:00:00]} c5 {[%emt 0:00:00]} 2. Nf3 {[%emt 0:00:00]} d6 {[%emt 0:00:00]} 3. d4 {[%emt 0:00:00]} cxd4 {[%emt 0:00:00]} 4. Nxd4 {[%emt 0:00:00]} Nf6 {[%emt 0:00:00]} 5. Nc3 {[%emt 0:00:00]} a6 {[%emt 0:00:00]} 6. h3 {[%emt 0:00:00]} e5 {[%emt 0:00:00]} 7. Nde2 {[%emt 0:00:00]} h5 {[%emt 0:00:00]} 8. g3 {[%emt 0:00:01]} Be7 {[%emt 0:00:08]} 9. Bg2 {[%emt 0:00:02]} b5 {[%emt 0:00:08]} 10. Nd5 {[%emt 0:00:02]} Nbd7 {[%emt 0:00:02]} 11. O-O {[%emt 0:00:21]} Nxd5 {[%emt 0:00:26]} 12. Qxd5 {[%emt 0:00:02]} Rb8 {[%emt 0:00:01]} 13. Be3 {[%emt 0:00:12]} h4 {[%emt 0:00:49]} 14. g4 {[%emt 0:00:09]} Bb7 {[%emt 0:00:04]} 15. Qd2 {[%emt 0:00:06]} O-O {[%emt 0:00:57]} 16. Nc3 {[%emt 0:01:02]} Rc8 {[%emt 0:00:11]} 17. Rac1 {[%emt 0:01:49]} Re8 {[%emt 0:01:40]} 18. Nd5 {[%emt 0:00:47]} Bxd5 {[%emt 0:00:20]} 19. Qxd5 {[%emt 0:00:17]} Nb6 {[%emt 0:00:00]} 20. Qb7 {[%emt 0:00:35]} Nc4 {[%emt 0:00:04]} 21. Qxa6 {[%emt 0:00:01]} Qd7 {[%emt 0:00:14]} 22. a4 {[%emt 0:00:26]} bxa4 {[%emt 0:00:05]} 23. b3 {[%emt 0:01:09]} Nxe3 {[%emt 0:00:41]} 24. fxe3 {[%emt 0:00:00]} Bg5 {[%emt 0:00:03]} 25. Qd3 {[%emt 0:00:15]} Qa7 {[%emt 0:01:19]} 26. Rce1 {[%emt 0:00:04]} a3 {[%emt 0:00:01]} 27. c4 {[%emt 0:00:10]} a2 {[%emt 0:00:09]} 28. Kf2 {[%emt 0:00:25]} Rb8 {[%emt 0:00:24]} 29. Ra1 {[%emt 0:00:10]} Qa3 {[%emt 0:00:07]} 30. Qc2 {[%emt 0:00:23]} Bxe3+ {[%emt 0:01:41]} 31. Ke2 {[%emt 0:00:18]} Qxb3 {[%emt 0:00:34]} 32. Rxa2 {[%emt 0:00:34]} Bd4 {[%emt 0:00:08]} 33. Qxb3 {[%emt 0:00:19]} Rxb3 {[%emt 0:00:00]} 34. Rf3 {[%emt 0:00:00]} Rb4 {[%emt 0:00:14]} 35. Rc2 {[%emt 0:00:15]} Ra8 {[%emt 0:00:11]} 36. Kd2 {[%emt 0:00:22]} Ra1 {[%emt 0:00:31]} 37. Bf1 {[%emt 0:00:10]} Rbb1 {[%emt 0:00:11]} 38. Be2 {[%emt 0:00:03]} Bc5 {[%emt 0:00:06]} 39. Rd3 {[%emt 0:00:23]} Bb4+ {[%emt 0:00:03]} 40. Ke3 {[%emt 0:00:01]} Rh1 {[%emt 0:00:00]} 41. g5 {[%emt 0:00:43]} Rxh3+ {[%emt 0:00:28]} 42. Kf2 {[%emt 0:00:01]} Rh2+ {[%emt 0:00:04]} 43. Ke3 {[%emt 0:00:12]} Bc5+ {[%emt 0:00:08]} 44. Kd2 {[%emt 0:00:05]} Rg1 {[%emt 0:00:22]} 45. Rb3 {[%emt 0:00:06]} h3 {[%emt 0:00:12]} 46. Rb8+ {[%emt 0:00:22]} Kh7 {[%emt 0:00:02]} 47. Rb3 {[%emt 0:00:00]} Kg6 {[%emt 0:00:02]} 48. Rf3 {[%emt 0:00:06]} Rxe2+ {[%emt 0:00:09]} 49. Kxe2 {[%emt 0:00:05]} h2 {[%emt 0:00:00]} 0-1

[Event "Polgar Challenge 2021"]
[Site "Online"]
[Date "2021.04.04"]
[Round "6.3"]
[White "Khademalsharieh, Sarasadat"]
[Black "Gukesh D"]
[Result "0-1"]
[ECO "D38"]
[WhiteElo "2494"]
[BlackElo "2578"]
[Annotator "ChessBase"]
[PlyCount "138"]
[EventDate "2021.04.08"]
[EventType "tourn"]
[EventCountry "NET"]
[SourceTitle "playchess.com"]
[Source "ChessBase"]
[SourceQuality "1"]
[TimeControl "600+5"]

1. d4 {[%emt 0:00:00]} d5 {[%emt 0:00:00]} 2. c4 {[%emt 0:00:00]} e6 {[%emt 0:00:00]} 3. Nc3 {[%emt 0:00:00]} Bb4 {[%emt 0:00:13]} 4. cxd5 {[%emt 0:00:20]} exd5 {[%emt 0:00:04]} 5. Nf3 {[%emt 0:00:02]} Nf6 {[%emt 0:00:25]} 6. Bg5 {[%emt 0:00:31]} Nbd7 {[%emt 0:00:37]} 7. Qb3 {[%emt 0:00:48]} c5 {[%emt 0:00:59]} 8. dxc5 {[%emt 0:00:33]} Qa5 {[%emt 0:00:52]} 9. a3 {[%emt 0:01:38]} Bxc3+ {[%emt 0:00:13]} 10. bxc3 {[%emt 0:01:04]} Ne4 {[%emt 0:00:54]} 11. Qb4 {[%emt 0:00:39]} Qxc5 {[%emt 0:00:40]} 12. Be3 {[%emt 0:00:02]} Qc7 {[%emt 0:01:02]} 13. Bd4 {[%emt 0:00:01]} a5 {[%emt 0:00:21]} 14. Qb2 {[%emt 0:00:16]} O-O {[%emt 0:00:03]} 15. e3 {[%emt 0:00:06]} Ndc5 {[%emt 0:00:01]} 16. Bb5 {[%emt 0:01:38]} Bg4 {[%emt 0:01:44]} 17. Ne5 {[%emt 0:00:22]} Bh5 {[%emt 0:00:08]} 18. O-O {[%emt 0:00:05]} a4 {[%emt 0:01:01]} 19. f3 {[%emt 0:00:18]} Nf6 {[%emt 0:00:09]} 20. Nd3 {[%emt 0:00:16]} Nb3 {[%emt 0:00:45]} 21. Rae1 {[%emt 0:01:24]} Nxd4 {[%emt 0:00:44]} 22. cxd4 {[%emt 0:00:02]} Rfc8 {[%emt 0:00:22]} 23. Rc1 {[%emt 0:00:08]} Qe7 {[%emt 0:00:01]} 24. Rfe1 {[%emt 0:00:22]} Rxc1 {[%emt 0:00:07]} 25. Qxc1 {[%emt 0:00:01]} Bg6 {[%emt 0:00:09]} 26. Nc5 {[%emt 0:00:08]} Ne8 {[%emt 0:00:11]} 27. Bxe8 {[%emt 0:00:08]} Rxe8 {[%emt 0:00:10]} 28. Qb2 {[%emt 0:00:02]} Qg5 {[%emt 0:00:09]} 29. Qxb7 {[%emt 0:00:15]} h5 {[%emt 0:00:01]} 30. f4 {[%emt 0:00:05]} Qh4 {[%emt 0:00:04]} 31. g3 {[%emt 0:00:15]} Qd8 {[%emt 0:00:01]} 32. Qc6 {[%emt 0:00:25]} Re7 {[%emt 0:00:09]} 33. Qxa4 {[%emt 0:00:03]} h4 {[%emt 0:00:06]} 34. Qd1 {[%emt 0:00:04]} Qa5 {[%emt 0:00:05]} 35. a4 {[%emt 0:00:03]} Bh5 {[%emt 0:00:03]} 36. Qb1 {[%emt 0:00:06]} Qd2 {[%emt 0:00:09]} 37. Qc1 {[%emt 0:00:06]} Qa5 {[%emt 0:00:08]} 38. Rf1 {[%emt 0:00:09]} h3 {[%emt 0:00:02]} 39. Qe1 {[%emt 0:00:04]} Qa8 {[%emt 0:00:11]} 40. Qf2 {[%emt 0:00:07]} Qa5 {[%emt 0:00:03]} 41. Qe1 {[%emt 0:00:15]} Qa8 {[%emt 0:00:02]} 42. Qd2 {[%emt 0:00:01]} Qe8 {[%emt 0:00:05]} 43. Re1 {[%emt 0:00:02]} Ra7 {[%emt 0:00:10]} 44. a5 {[%emt 0:00:03]} Qb5 {[%emt 0:00:04]} 45. a6 {[%emt 0:00:01]} Bg6 {[%emt 0:00:00]} 46. Qe2 {[%emt 0:00:06]} Qa5 {[%emt 0:00:03]} 47. Rf1 {[%emt 0:00:07]} Bf5 {[%emt 0:00:06]} 48. Qf3 {[%emt 0:00:10]} Qd2 {[%emt 0:00:04]} 49. g4 {[%emt 0:00:10]} Bc8 {[%emt 0:00:13]} 50. Qf2 {[%emt 0:00:15]} Qc3 {[%emt 0:00:03]} 51. Qe1 {[%emt 0:00:06]} Qa3 {[%emt 0:00:07]} 52. Qg3 {[%emt 0:00:05]} Bxa6 {[%emt 0:00:02]} 53. Nxa6 {[%emt 0:00:01]} Qxa6 {[%emt 0:00:03]} 54. Qxh3 {[%emt 0:00:01]} Qd3 {[%emt 0:00:02]} 55. Qf3 {[%emt 0:00:12]} Ra2 {[%emt 0:00:05]} 56. Rf2 {[%emt 0:00:03]} Ra1+ {[%emt 0:00:02]} 57. Kg2 {[%emt 0:00:01]} Re1 {[%emt 0:00:04]} 58. e4 {[%emt 0:00:20]} Qxd4 {[%emt 0:00:02]} 59. exd5 {[%emt 0:00:03]} Re3 {[%emt 0:00:01]} 60. d6 {[%emt 0:00:11]} Rxf3 {[%emt 0:00:01]} 61. Rxf3 {[%emt 0:00:00]} Qxd6 {[%emt 0:00:01]} 62. h4 {[%emt 0:00:01]} Qd2+ {[%emt 0:00:03]} 63. Kg3 {[%emt 0:00:01]} Qe1+ {[%emt 0:00:00]} 64. Kh3 {[%emt 0:00:03]} Qh1+ {[%emt 0:00:02]} 65. Kg3 {[%emt 0:00:00]} Qg1+ {[%emt 0:00:00]} 66. Kh3 {[%emt 0:00:01]} Kh7 {[%emt 0:00:02]} 67. h5 {[%emt 0:00:01]} Kh6 {[%emt 0:00:03]} 68. Ra3 {[%emt 0:00:24]} Qf2 {[%emt 0:00:06]} 69. Ra6+ {[%emt 0:00:21]} f6 {[%emt 0:00:02]} 0-1

[Event "Polgar Challenge 2021"]
[Site "Online"]
[Date "2021.04.04"]
[Round "6.6"]
[White "Mammadzada, Gunay"]
[Black "Yoo, Christopher Woojin"]
[Result "1/2-1/2"]
[ECO "B33"]
[WhiteElo "2443"]
[BlackElo "2455"]
[Annotator "ChessBase"]
[PlyCount "124"]
[EventDate "2021.04.08"]
[EventType "tourn"]
[EventCountry "NET"]
[SourceTitle "playchess.com"]
[Source "ChessBase"]
[SourceQuality "1"]
[TimeControl "600+5"]

1. e4 {[%emt 0:00:00]} c5 {[%emt 0:00:00]} 2. Nf3 {[%emt 0:00:06]} e6 {[%emt 0:00:01]} 3. d4 {[%emt 0:00:02]} cxd4 {[%emt 0:00:01]} 4. Nxd4 {[%emt 0:00:02]} Nf6 {[%emt 0:00:02]} 5. Nc3 {[%emt 0:00:02]} Qb6 {[%emt 0:00:06]} 6. a3 {[%emt 0:03:59]} Nc6 {[%emt 0:01:36]} 7. Nb3 {[%emt 0:00:29]} Qc7 {[%emt 0:00:55]} 8. Be3 {[%emt 0:00:24]} Be7 {[%emt 0:01:19]} 9. Be2 {[%emt 0:01:36]} O-O {[%emt 0:00:06]} 10. O-O {[%emt 0:00:01]} a6 {[%emt 0:01:26]} 11. f4 {[%emt 0:00:06]} b5 {[%emt 0:00:28]} 12. e5 {[%emt 0:00:37]} Ne8 {[%emt 0:00:02]} 13. Bd3 {[%emt 0:00:17]} d6 {[%emt 0:00:58]} 14. Be4 {[%emt 0:01:21]} Bb7 {[%emt 0:00:41]} 15. Qh5 {[%emt 0:01:36]} g6 {[%emt 0:01:24]} 16. Qe2 {[%emt 0:00:02]} Ng7 {[%emt 0:00:27]} 17. exd6 {[%emt 0:00:08]} Bxd6 {[%emt 0:00:02]} 18. Nc5 {[%emt 0:00:11]} Nd4 {[%emt 0:00:55]} 19. Bxd4 {[%emt 0:00:10]} Bxc5 {[%emt 0:00:02]} 20. Bxc5 {[%emt 0:00:03]} Qxc5+ {[%emt 0:00:00]} 21. Kh1 {[%emt 0:00:01]} Bd5 {[%emt 0:00:16]} 22. Nxd5 {[%emt 0:00:13]} exd5 {[%emt 0:00:00]} 23. Bd3 {[%emt 0:00:01]} Rfe8 {[%emt 0:00:07]} 24. Qg4 {[%emt 0:00:05]} f5 {[%emt 0:00:12]} 25. Qf3 {[%emt 0:00:03]} Re3 {[%emt 0:00:06]} 26. Qf2 {[%emt 0:00:01]} d4 {[%emt 0:00:05]} 27. b4 {[%emt 0:00:10]} Qd6 {[%emt 0:00:12]} 28. a4 {[%emt 0:00:03]} Rb8 {[%emt 0:00:04]} 29. axb5 {[%emt 0:00:04]} axb5 {[%emt 0:00:00]} 30. Qd2 {[%emt 0:00:02]} Ne6 {[%emt 0:00:08]} 31. Rae1 {[%emt 0:00:27]} Rxe1 {[%emt 0:00:22]} 32. Qxe1 {[%emt 0:00:00]} Nc7 {[%emt 0:00:09]} 33. Qa1 {[%emt 0:00:10]} Ra8 {[%emt 0:00:09]} 34. Qb2 {[%emt 0:00:03]} Ra4 {[%emt 0:00:04]} 35. Bxb5 {[%emt 0:00:09]} Qxb4 {[%emt 0:00:08]} 36. Qb3+ {[%emt 0:00:09]} Qxb3 {[%emt 0:00:03]} 37. cxb3 {[%emt 0:00:00]} Ra2 {[%emt 0:00:11]} 38. Bc4+ {[%emt 0:00:00]} Kg7 {[%emt 0:00:02]} 39. Rd1 {[%emt 0:00:12]} Kf6 {[%emt 0:00:14]} 40. Kg1 {[%emt 0:00:02]} Ne6 {[%emt 0:00:08]} 41. Bxe6 {[%emt 0:00:04]} Kxe6 {[%emt 0:00:00]} 42. Rxd4 {[%emt 0:00:01]} Rb2 {[%emt 0:00:01]} 43. Rb4 {[%emt 0:00:12]} Kf6 {[%emt 0:00:02]} 44. h3 {[%emt 0:00:00]} h5 {[%emt 0:00:05]} 45. Rb6+ {[%emt 0:00:07]} Kg7 {[%emt 0:00:02]} 46. h4 {[%emt 0:00:03]} Kh7 {[%emt 0:00:03]} 47. Kh2 {[%emt 0:00:01]} Kg7 {[%emt 0:00:04]} 48. Kg3 {[%emt 0:00:01]} Rc2 {[%emt 0:00:06]} 49. Kf3 {[%emt 0:00:10]} Rc3+ {[%emt 0:00:05]} 50. Kf2 {[%emt 0:00:08]} Rc2+ {[%emt 0:00:01]} 51. Kg3 {[%emt 0:00:01]} Rc3+ {[%emt 0:00:02]} 52. Kh2 {[%emt 0:00:01]} Rc2 {[%emt 0:00:02]} 53. b4 {[%emt 0:00:01]} Rc4 {[%emt 0:00:07]} 54. Kg3 {[%emt 0:00:10]} Rc3+ {[%emt 0:00:02]} 55. Kf2 {[%emt 0:00:01]} Rc2+ {[%emt 0:00:01]} 56. Kf3 {[%emt 0:00:06]} Rc3+ {[%emt 0:00:02]} 57. Ke2 {[%emt 0:00:19]} Rc2+ {[%emt 0:00:17]} 58. Kf3 {[%emt 0:00:09]} Rc3+ {[%emt 0:00:01]} 59. Kf2 {[%emt 0:00:03]} Rc2+ {[%emt 0:00:02]} 60. Kg3 {[%emt 0:00:06]} Rc3+ {[%emt 0:00:01]} 61. Kh2 {[%emt 0:00:01]} Rc4 {[%emt 0:00:01]} 62. Kg3 {[%emt 0:00:10]} Rc3+ {[%emt 0:00:02]} 1/2-1/2

[Event "Polgar Challenge 2021"]
[Site "Online"]
[Date "2021.04.04"]
[Round "6.8"]
[White "Badelka, Olga"]
[Black "Saduakassova, Dinara"]
[Result "1-0"]
[ECO "A39"]
[WhiteElo "2433"]
[BlackElo "2500"]
[Annotator "ChessBase"]
[PlyCount "79"]
[EventDate "2021.04.08"]
[EventType "tourn"]
[EventCountry "NET"]
[SourceTitle "playchess.com"]
[Source "ChessBase"]
[SourceQuality "1"]
[TimeControl "600+5"]

1. Nf3 {[%emt 0:00:00]} Nf6 {[%emt 0:00:00]} 2. g3 {[%emt 0:00:00]} c5 {[%emt 0:00:15]} 3. Bg2 {[%emt 0:00:08]} Nc6 {[%emt 0:00:03]} 4. O-O {[%emt 0:00:18]} g6 {[%emt 0:02:22]} 5. d4 {[%emt 0:00:23]} cxd4 {[%emt 0:02:46]} 6. Nxd4 {[%emt 0:05:05]} Bg7 {[%emt 0:00:04]} 7. c4 {[%emt 0:00:02]} O-O {[%emt 0:00:36]} 8. Nc3 {[%emt 0:00:04]} Nxd4 {[%emt 0:00:59]} 9. Qxd4 {[%emt 0:00:02]} d6 {[%emt 0:00:00]} 10. Qd2 {[%emt 0:00:15]} Qc7 {[%emt 0:00:18]} 11. b3 {[%emt 0:00:04]} Bd7 {[%emt 0:00:03]} 12. Bb2 {[%emt 0:00:02]} Bc6 {[%emt 0:00:01]} 13. Nd5 {[%emt 0:00:13]} Bxd5 {[%emt 0:00:10]} 14. cxd5 {[%emt 0:00:02]} Rac8 {[%emt 0:00:30]} 15. Rac1 {[%emt 0:00:03]} Qb6 {[%emt 0:00:28]} 16. e3 {[%emt 0:00:56]} Nd7 {[%emt 0:00:17]} 17. Bxg7 {[%emt 0:00:19]} Kxg7 {[%emt 0:00:03]} 18. h4 {[%emt 0:00:01]} Nf6 {[%emt 0:00:06]} 19. Rc2 {[%emt 0:00:16]} Rxc2 {[%emt 0:00:05]} 20. Qxc2 {[%emt 0:00:01]} Qc5 {[%emt 0:00:03]} 21. Qxc5 {[%emt 0:00:14]} dxc5 {[%emt 0:00:00]} 22. e4 {[%emt 0:00:01]} Nd7 {[%emt 0:00:04]} 23. f4 {[%emt 0:00:06]} Rd8 {[%emt 0:01:14]} 24. Rc1 {[%emt 0:00:38]} b6 {[%emt 0:00:19]} 25. e5 {[%emt 0:00:07]} h6 {[%emt 0:00:51]} 26. Kf2 {[%emt 0:00:26]} g5 {[%emt 0:00:03]} 27. Ke3 {[%emt 0:00:07]} a5 {[%emt 0:00:06]} 28. Be4 {[%emt 0:00:08]} Nf8 {[%emt 0:00:09]} 29. Rh1 {[%emt 0:00:52]} Rd7 {[%emt 0:00:09]} 30. hxg5 {[%emt 0:00:24]} hxg5 {[%emt 0:00:13]} 31. f5 {[%emt 0:00:02]} Ra7 {[%emt 0:00:02]} 32. a4 {[%emt 0:00:04]} Nd7 {[%emt 0:00:04]} 33. e6 {[%emt 0:00:07]} Nf6 {[%emt 0:00:02]} 34. Rd1 {[%emt 0:00:23]} Ra8 {[%emt 0:00:04]} 35. d6 {[%emt 0:00:03]} Nxe4 {[%emt 0:00:03]} 36. Kxe4 {[%emt 0:00:05]} Kf6 {[%emt 0:00:02]} 37. d7 {[%emt 0:00:13]} Rd8 {[%emt 0:00:02]} 38. exf7 {[%emt 0:00:01]} Kxf7 {[%emt 0:00:01]} 39. Ke5 {[%emt 0:00:01]} g4 {[%emt 0:00:06]} 40. Rd2 {[%emt 0:00:03]} 1-0